fUST/lending_fUST_20240918
["ID","MTS","AMOUNT","RATE_DAILY","PERIOD"]
[338466663,1726666243816,-913.77,0.00019178,2]
[338466664,1726666243826,-500.0,0.00019178,2]
[338466665,1726666243835,-1000.0,0.00019178,2]
[338466666,1726666243845,-500.0,0.00019178,2]
[338466667,1726666243854,-500.0,0.00019178,2]
[338466668,1726666243863,-500.0,0.00019178,2]
[338466669,1726666243874,-500.0,0.00019178,2]
[338466670,1726666243883,-500.0,0.00019178,2]
[338466671,1726666243892,-466.831923,0.00019178,2]
[338466672,1726666243902,-466.831923,0.00019178,2]
[338466673,1726666243914,-466.831923,0.00019178,2]
[338466674,1726666243923,-500.0,0.00019178,2]
[338466675,1726666243933,-500.0,0.00019178,2]
[338466676,1726666243943,-875.06,0.00019178,2]
[338466677,1726666243960,-466.831923,0.00019178,2]
[338466678,1726666243970,-2768.29,0.00019178,2]
[338466679,1726666243979,-466.831923,0.00019178,2]
[338466680,1726666243989,-466.831923,0.00019178,2]
[338466681,1726666244000,-500.0,0.00019178,2]
[338466682,1726666244009,-1024.31,0.00019178,2]
[338466683,1726666244019,-544.51130896,0.00019178,2]
[338466684,1726666244030,-151.0,0.00019178,2]
[338466685,1726666244041,-151.0,0.00019178,2]
[338466686,1726666244050,-151.0,0.00019178,2]
[338466687,1726666244060,-1277.79,0.00019178,2]
[338466688,1726666244069,-719.29,0.00019178,2]
[338466689,1726666244079,-151.0,0.00019178,2]
[338466690,1726666244088,-262.515348,0.00019178,2]
[338466691,1726666244098,-500.0,0.00019178,2]
[338466692,1726666244107,-151.0,0.00019178,2]
[338466693,1726666244117,-151.0,0.00019178,2]
[338466694,1726666244127,-500.0,0.00019178,2]
[338466695,1726666244136,-500.0,0.00019178,2]
[338466696,1726666244146,-536.47,0.00019178,2]
[338466697,1726666244156,-500.0,0.00019178,2]
[338466698,1726666244165,-500.0,0.00019178,2]
[338466699,1726666244175,-798.57,0.00019178,2]
[338466700,1726666244185,-500.0,0.00019178,2]
[338466701,1726666244195,-500.0,0.00019178,2]
[338466702,1726666244205,-500.0,0.00019178,2]
[338466703,1726666244215,-1028.77,0.00019178,2]
[338466704,1726666244224,-645.59,0.00019178,2]
[338466705,1726666244234,-587.04,0.00019178,2]
[338466706,1726666244243,-152.546196,0.00019178,2]
[338466707,1726666244253,-1166.63,0.00019178,2]
[338466708,1726666244263,-560.27,0.00019178,2]
[338466709,1726666244272,-500.0,0.00019178,2]
[338466710,1726666244282,-500.0,0.00019178,2]
[338466711,1726666244292,-1091.58,0.00019178,2]
[338466712,1726666244302,-667.92,0.00019178,2]
[338466713,1726666244311,-500.0,0.00019178,2]
[338466714,1726666244321,-253.95,0.00019178,2]
[338466715,1726666244330,-500.0,0.00019178,2]
[338466716,1726666244339,-500.0,0.00019178,2]
[338466717,1726666244350,-500.0,0.00019178,2]
[338466718,1726666244359,-500.0,0.00019178,2]
[338466719,1726666244369,-500.0,0.00019178,2]
[338466720,1726666244378,-500.0,0.00019178,2]
[338466721,1726666244388,-643.85,0.00019178,2]
[338466722,1726666244398,-500.0,0.00019178,2]
[338466723,1726666244409,-500.0,0.00019178,2]
[338466724,1726666244419,-388.24547586,0.00019178,2]
[338466725,1726666244429,-1105.8,0.00019178,2]
[338466726,1726666244438,-1735.12,0.00019178,2]
[338466727,1726666244447,-698.47,0.00019178,2]
[338466728,1726666244457,-500.0,0.00019178,2]
[338466729,1726666244466,-500.0,0.00019178,2]
[338466730,1726666244475,-1392.39,0.00019178,2]
[338466731,1726666244485,-500.0,0.00019178,2]
[338466732,1726666244495,-500.0,0.00019178,2]
[338466733,1726666244505,-500.0,0.00019178,2]
[338466734,1726666244514,-696.15,0.00019178,2]
[338466735,1726666244524,-500.0,0.00019178,2]
[338466736,1726666244534,-974.16,0.00019178,2]
[338466737,1726666244543,-1411.87,0.00019178,2]
[338466738,1726666244553,-913.11,0.00019178,2]
[338466739,1726666244563,-1899.85,0.00019178,2]
[338466740,1726666244572,-3224.36,0.00019178,2]
[338466741,1726666244581,-500.0,0.00019178,2]
[338466742,1726666244591,-1085.51,0.00019178,2]
[338466743,1726666244601,-1946.95,0.00019178,2]
[338466744,1726666244611,-252.52289658,0.00019178,2]
[338466745,1726666244622,-151.0,0.00019178,2]
[338466746,1726666244632,-218.689446,0.00019178,2]
[338466747,1726666244642,-956.82,0.00019178,2]
[338466748,1726666244652,-2255.98,0.00019178,2]
[338466749,1726666244672,-933.8,0.00019178,2]
[338466750,1726666244682,-1687.76,0.00019178,2]
[338466751,1726666244692,-615.94,0.00019178,2]
[338466752,1726666244701,-503.59,0.00019178,2]
[338466753,1726666244711,-500.0,0.00019178,2]
[338466754,1726666244721,-500.0,0.00019178,2]
[338466755,1726666244731,-500.0,0.00019178,2]
[338466756,1726666244740,-601.75,0.00019178,2]
[338466757,1726666244750,-547.86369179,0.00019178,2]
[338466758,1726666244760,-500.0,0.00019178,2]
[338466759,1726666244770,-500.0,0.00019178,2]
[338466760,1726666244780,-500.0,0.00019178,2]
[338466761,1726666244789,-2301.41,0.00019178,2]
[338466762,1726666244799,-841.78,0.00019178,2]
[338466763,1726666244809,-895.81,0.00019178,2]
[338466764,1726666244819,-500.0,0.00019178,2]
[338466765,1726666244828,-788.95,0.00019178,2]
[338466766,1726666244837,-500.0,0.00019178,2]
[338466767,1726666244847,-751.56,0.00019178,2]
[338466768,1726666244857,-642.74,0.00019178,2]
[338466769,1726666244866,-1073.15,0.00019178,2]
[338466770,1726666244876,-682.82,0.00019178,2]
[338466771,1726666244885,-500.0,0.00019178,2]
[338466772,1726666244894,-500.0,0.00019178,2]
[338466773,1726666244904,-500.0,0.00019178,2]
[338466774,1726666244923,-816.53,0.00019178,2]
[338466775,1726666244932,-500.0,0.00019178,2]
[338466776,1726666244941,-888.97,0.00019178,2]
[338466777,1726666244955,-393.92013295,0.00019178,2]
[338466782,1726666246369,-500.0,0.00019173,2]
[338466783,1726666246379,-950.92986705,0.00019178,2]
[338466784,1726666246388,-500.0,0.00019178,2]
[338466785,1726666246397,-500.0,0.00019178,2]
[338466786,1726666246406,-1345.3,0.00019178,2]
[338466787,1726666246415,-500.0,0.00019178,2]
[338466788,1726666246424,-500.0,0.00019178,2]
[338466789,1726666246434,-506.52725651,0.00019178,2]
[338466790,1726666246444,-500.0,0.00019178,2]
[338466791,1726666246455,-631.2349965,0.00019178,2]
[338466792,1726666246465,-151.0,0.00019178,2]
[338466793,1726666246477,-865.85,0.00019178,2]
[338466794,1726666246487,-151.0,0.00019178,2]
[338466795,1726666246496,-500.0,0.00019178,2]
[338466796,1726666246505,-500.0,0.00019178,2]
[338466797,1726666246515,-151.645653,0.00019178,2]
[338466798,1726666246526,-538.41,0.00019178,2]
[338466799,1726666246535,-500.0,0.00019178,2]
[338466800,1726666246545,-500.0,0.00019178,2]
[338466801,1726666246554,-500.0,0.00019178,2]
[338466802,1726666246563,-500.0,0.00019178,2]
[338466803,1726666246572,-627.55,0.00019178,2]
[338466804,1726666246582,-656.67,0.00019178,2]
[338466805,1726666246591,-500.0,0.00019178,2]
[338466806,1726666246600,-500.0,0.00019178,2]
[338466807,1726666246609,-500.0,0.00019178,2]
[338466808,1726666246618,-500.0,0.00019178,2]
[338466809,1726666246627,-500.0,0.00019178,2]
[338466810,1726666246636,-1464.15,0.00019178,2]
[338466811,1726666246645,-500.0,0.00019178,2]
[338466812,1726666246654,-500.0,0.00019178,2]
[338466813,1726666246664,-500.0,0.00019178,2]
[338466814,1726666246674,-500.0,0.00019178,2]
[338466815,1726666246683,-1404.07,0.00019178,2]
[338466816,1726666246692,-500.0,0.00019178,2]
[338466817,1726666246701,-612.26,0.00019178,2]
[338466818,1726666246710,-996.63188852,0.00019178,2]
[338466819,1726666247479,-680.70811148,0.00019178,2]
[338466820,1726666247489,-1125.54,0.00019178,2]
[338466821,1726666247498,-1182.35,0.00019178,2]
[338466822,1726666247509,-1158.62,0.00019178,2]
[338466823,1726666247520,-500.0,0.00019178,2]
[338466824,1726666247530,-999.52504147,0.00019178,2]
[338466826,1726666778595,199.55,0.00014012,2]
[338466829,1726667359403,-234.377,0.00017287,2]
[338466830,1726667359429,-1362.023,0.00017411,2]
[338466841,1726667432594,-807.98813339,0.00017411,2]
[338466842,1726667432606,-848.77109088,0.00017411,2]
[338466843,1726667432617,-3543.16599324,0.00017411,2]
[338466844,1726667432626,-300.0,0.0001773,2]
[338466845,1726667432635,-4064.84336179,0.00017731,2]
[338466951,1726667438421,-2497.10485572,0.00017731,2]
[338466953,1726667438431,-6561.94821751,0.00017958,2]
[338466955,1726667438441,-6561.94821751,0.00018188,2]
[338466957,1726667438450,-6561.94821751,0.00018394,2]
[338466958,1726667438459,-153.0,0.00018441,2]
[338466959,1726667438468,-6561.94821751,0.00018638,2]
[338466960,1726667438477,-1637.99119568,0.0001868,2]
[338466961,1726667438486,-500.06757982,0.0001878,2]
[338466962,1726667438496,-1000.0,0.000188,2]
[338466963,1726667438507,-500.0,0.000188,2]
[338466964,1726667438516,-150.0,0.000189,2]
[338466965,1726667438526,-6561.94821751,0.00018916,2]
[338466966,1726667438535,-4042.0,0.00019,2]
[338466967,1726667438544,-153.0,0.00019038,2]
[338466968,1726667438553,-1000.0,0.00019048,2]
[338466969,1726667438562,-8220.62910634,0.00019078,2]
[338466970,1726667438572,-617.96146233,0.00019128,2]
[338466971,1726667438581,-256.38120192,0.00019128,2]
[338466972,1726667438591,-500.0,0.00019128,2]
[338466973,1726667438600,-384.82473777,0.00019128,2]
[338466974,1726667438609,-500.0,0.00019128,2]
[338466975,1726667438618,-500.0,0.00019128,2]
[338466976,1726667438627,-500.0,0.00019128,2]
[338466977,1726667438636,-500.0,0.00019128,2]
[338466978,1726667438645,-500.0,0.00019128,2]
[338466979,1726667438654,-500.0,0.00019128,2]
[338466980,1726667438663,-170.17476136,0.00019128,2]
[338466981,1726667438672,-500.0,0.00019128,2]
[338466982,1726667438682,-124520.05891289,0.00019129,3]
[338466983,1726667438706,-216333.12897611,0.00019129,3]
[338466984,1726667438715,-54468.7281359,0.00019129,3]
[338466985,1726667438725,-6808.59101699,0.00019163,3]
[338466986,1726667438734,-500.0,0.00019167,2]
[338466987,1726667438743,-1637.99119563,0.00019167,2]
[338466988,1726667438756,-68610.92135607,0.00019168,3]
[338466999,1726667440698,-6283.57983083,0.00019168,3]
[338467000,1726667440708,-20053.15693236,0.00019169,2]
[338467001,1726667440718,-500.0,0.00019173,2]
[338467002,1726667440728,-369.95180564,0.00019173,2]
[338467003,1726667440738,-500.0,0.00019173,2]
[338467004,1726667440748,-500.0,0.00019173,2]
[338467005,1726667440763,-500.0,0.00019173,2]
[338467006,1726667440773,-500.0,0.00019173,2]
[338467007,1726667440782,-500.16862454,0.00019173,2]
[338467008,1726667440791,-500.0,0.00019173,2]
[338467009,1726667440800,-500.0,0.00019173,2]
[338467010,1726667440810,-898.31657089,0.00019177,2]
[338467011,1726667440820,-160.0,0.00019177,2]
[338467012,1726667440829,-10771.72819832,0.00019178,5]
[338467013,1726667440838,-3441.1162423,0.00019178,5]
[338467014,1726667440847,-151.0,0.00019178,2]
[338467015,1726667440856,-151.0,0.00019178,2]
[338467016,1726667440866,-299.137519,0.00019178,2]
[338467017,1726667440875,-151.0,0.00019178,2]
[338467018,1726667440885,-151.0,0.00019178,2]
[338467019,1726667440894,-151.0,0.00019178,2]
[338467020,1726667440903,-151.0,0.00019178,2]
[338467021,1726667440913,-151.0,0.00019178,2]
[338467022,1726667440922,-294.484643,0.00019178,2]
[338467023,1726667440932,-151.0,0.00019178,2]
[338467024,1726667440942,-151.0,0.00019178,2]
[338467025,1726667440951,-151.0,0.00019178,2]
[338467026,1726667440960,-151.0,0.00019178,2]
[338467027,1726667440969,-151.0,0.00019178,2]
[338467028,1726667440979,-151.0,0.00019178,2]
[338467029,1726667440988,-151.0,0.00019178,2]
[338467030,1726667440997,-151.0,0.00019178,2]
[338467031,1726667441011,-154.506811,0.00019178,2]
[338467032,1726667441020,-151.0,0.00019178,2]
[338467033,1726667441029,-151.0,0.00019178,2]
[338467034,1726667441039,-151.0,0.00019178,2]
[338467035,1726667441048,-151.0,0.00019178,2]
[338467036,1726667441058,-151.0,0.00019178,2]
[338467037,1726667441067,-165.687022,0.00019178,2]
[338467038,1726667441076,-500.0,0.00019178,2]
[338467039,1726667441085,-500.0,0.00019178,2]
[338467040,1726667441095,-151.0,0.00019178,2]
[338467041,1726667441104,-151.0,0.00019178,2]
[338467042,1726667441114,-151.0,0.00019178,2]
[338467043,1726667441124,-151.0,0.00019178,2]
[338467044,1726667441134,-151.0,0.00019178,2]
[338467045,1726667441143,-151.0,0.00019178,2]
[338467046,1726667441153,-151.0,0.00019178,2]
[338467047,1726667441163,-203.592475,0.00019178,2]
[338467048,1726667441173,-193.265891,0.00019178,2]
[338467049,1726667441183,-193.265891,0.00019178,2]
[338467050,1726667441192,-193.265891,0.00019178,2]
[338467051,1726667441203,-193.265891,0.00019178,2]
[338467052,1726667441212,-193.265891,0.00019178,2]
[338467053,1726667441222,-193.265891,0.00019178,2]
[338467054,1726667441231,-193.265891,0.00019178,2]
[338467055,1726667441241,-193.265891,0.00019178,2]
[338467056,1726667441250,-500.0,0.00019178,2]
[338467057,1726667441264,-500.0,0.00019178,2]
[338467058,1726667441273,-500.0,0.00019178,2]
[338467059,1726667441282,-513.63778498,0.00019178,2]
[338467060,1726667441292,-500.0,0.00019178,2]
[338467061,1726667441302,-500.0,0.00019178,2]
[338467062,1726667441311,-500.0,0.00019178,2]
[338467063,1726667441321,-500.0,0.00019178,2]
[338467064,1726667441330,-151.0,0.00019178,2]
[338467065,1726667441339,-151.0,0.00019178,2]
[338467066,1726667441349,-1076.86,0.00019178,2]
[338467067,1726667441359,-500.0,0.00019178,2]
[338467068,1726667441369,-500.0,0.00019178,2]
[338467069,1726667441380,-500.0,0.00019178,2]
[338467070,1726667441391,-500.0,0.00019178,2]
[338467071,1726667441401,-690.65,0.00019178,2]
[338467072,1726667441412,-500.0,0.00019178,2]
[338467073,1726667441422,-500.0,0.00019178,2]
[338467074,1726667441434,-500.0,0.00019178,2]
[338467075,1726667441444,-500.0,0.00019178,2]
[338467076,1726667441453,-500.0,0.00019178,2]
[338467077,1726667441464,-500.0,0.00019178,2]
[338467078,1726667441474,-500.0,0.00019178,2]
[338467079,1726667441484,-500.0,0.00019178,2]
[338467080,1726667441494,-500.0,0.00019178,2]
[338467081,1726667441508,-500.0,0.00019178,2]
[338467082,1726667441517,-500.0,0.00019178,2]
[338467083,1726667441526,-500.0,0.00019178,2]
[338467084,1726667441536,-500.0,0.00019178,2]
[338467085,1726667441546,-500.0,0.00019178,2]
[338467086,1726667441558,-1277.79,0.00019178,2]
[338467087,1726667441570,-500.0,0.00019178,2]
[338467088,1726667441582,-500.0,0.00019178,2]
[338467089,1726667441592,-500.0,0.00019178,2]
[338467090,1726667441603,-151.0,0.00019178,2]
[338467091,1726667441613,-152.115204,0.00019178,2]
[338467092,1726667441623,-1049.6,0.00019178,2]
[338467093,1726667441635,-500.0,0.00019178,2]
[338467094,1726667441648,-500.0,0.00019178,2]
[338467095,1726667441659,-500.0,0.00019178,2]
[338467096,1726667441671,-719.29,0.00019178,2]
[338467097,1726667441681,-500.0,0.00019178,2]
[338467098,1726667441691,-500.0,0.00019178,2]
[338467099,1726667441703,-500.0,0.00019178,2]
[338467100,1726667441714,-500.0,0.00019178,2]
[338467101,1726667441726,-500.0,0.00019178,2]
[338467102,1726667441739,-1024.31,0.00019178,2]
[338467103,1726667441749,-500.0,0.00019178,2]
[338467104,1726667441762,-500.0,0.00019178,2]
[338467105,1726667441772,-500.0,0.00019178,2]
[338467106,1726667441781,-544.51130896,0.00019178,2]
[338467107,1726667441791,-500.0,0.00019178,2]
[338467108,1726667441802,-500.0,0.00019178,2]
[338467109,1726667441813,-536.47,0.00019178,2]
[338467110,1726667441822,-500.0,0.00019178,2]
[338467111,1726667441832,-151.0,0.00019178,2]
[338467112,1726667441842,-151.0,0.00019178,2]
[338467113,1726667441851,-151.0,0.00019178,2]
[338467114,1726667441863,-500.0,0.00019178,2]
[338467115,1726667441873,-151.0,0.00019178,2]
[338467116,1726667441883,-151.0,0.00019178,2]
[338467117,1726667441893,-151.0,0.00019178,2]
[338467118,1726667441902,-500.0,0.00019178,2]
[338467119,1726667441912,-500.0,0.00019178,2]
[338467120,1726667441922,-798.57,0.00019178,2]
[338467121,1726667441932,-550.05,0.00019178,2]
[338467122,1726667441942,-500.0,0.00019178,2]
[338467123,1726667441953,-500.0,0.00019178,2]
[338467124,1726667441963,-974.16,0.00019178,2]
[338467125,1726667441974,-500.0,0.00019178,2]
[338467126,1726667441983,-500.0,0.00019178,2]
[338467127,1726667441992,-1166.63,0.00019178,2]
[338467128,1726667442001,-500.0,0.00019178,2]
[338467129,1726667442014,-645.59,0.00019178,2]
[338467130,1726667442024,-500.0,0.00019178,2]
[338467131,1726667442033,-500.0,0.00019178,2]
[338467132,1726667442042,-500.0,0.00019178,2]
[338467133,1726667442051,-500.0,0.00019178,2]
[338467134,1726667442061,-388.24547586,0.00019178,2]
[338467135,1726667442070,-1085.51,0.00019178,2]
[338467136,1726667442080,-512.28,0.00019178,2]
[338467137,1726667442090,-253.95,0.00019178,2]
[338467138,1726667442099,-500.0,0.00019178,2]
[338467139,1726667442109,-788.95,0.00019178,2]
[338467140,1726667442118,-3902.89,0.00019178,2]
[338467141,1726667442127,-875.06,0.00019178,2]
[338467142,1726667442137,-601.4,0.00019178,2]
[338467143,1726667442146,-223.49469264,0.00019178,2]
[338467144,1726667442156,-500.0,0.00019178,2]
[338467145,1726667442165,-500.0,0.00019178,2]
[338467146,1726667442174,-500.0,0.00019178,2]
[338467147,1726667442184,-500.0,0.00019178,2]
[338467148,1726667442193,-841.78,0.00019178,2]
[338467149,1726667442204,-500.0,0.00019178,2]
[338467150,1726667442214,-500.0,0.00019178,2]
[338467151,1726667442224,-500.0,0.00019178,2]
[338467152,1726667442235,-500.0,0.00019178,2]
[338467153,1726667442245,-500.0,0.00019178,2]
[338467154,1726667442258,-500.0,0.00019178,2]
[338467155,1726667442268,-913.11,0.00019178,2]
[338467156,1726667442278,-500.0,0.00019178,2]
[338467157,1726667442287,-500.0,0.00019178,2]
[338467158,1726667442297,-500.0,0.00019178,2]
[338467159,1726667442308,-500.0,0.00019178,2]
[338467160,1726667442320,-682.82,0.00019178,2]
[338467161,1726667442331,-1946.95,0.00019178,2]
[338467162,1726667442342,-500.0,0.00019178,2]
[338467163,1726667442353,-1110.35,0.00019178,2]
[338467164,1726667442363,-151.0,0.00019178,2]
[338467165,1726667442374,-151.0,0.00019178,2]
[338467166,1726667442388,-2255.98,0.00019178,2]
[338467167,1726667442398,-151.0,0.00019178,2]
[338467168,1726667442409,-500.0,0.00019178,2]
[338467169,1726667442420,-159.340489,0.00019178,2]
[338467170,1726667442430,-500.0,0.00019178,2]
[338467171,1726667442442,-500.0,0.00019178,2]
[338467172,1726667442452,-151.0,0.00019178,2]
[338467173,1726667442462,-294.853494,0.00019178,2]
[338467174,1726667442619,-151.0,0.00019178,2]
[338467175,1726667442631,-500.0,0.00019178,2]
[338467176,1726667442641,-294.853494,0.00019178,2]
[338467177,1726667442652,-151.0,0.00019178,2]
[338467178,1726667442663,-294.853494,0.00019178,2]
[338467179,1726667442674,-151.0,0.00019178,2]
[338467180,1726667442686,-194.975046,0.00019178,2]
[338467181,1726667442696,-721.45,0.00019178,2]
[338467182,1726667442705,-1033.34,0.00019178,2]
[338467183,1726667442715,-500.0,0.00019178,2]
[338467184,1726667442726,-294.853494,0.00019178,2]
[338467185,1726667442737,-500.0,0.00019178,2]
[338467186,1726667442747,-294.853494,0.00019178,2]
[338467187,1726667442758,-294.853494,0.00019178,2]
[338467188,1726667442767,-1249.19,0.00019178,2]
[338467189,1726667442777,-500.0,0.00019178,2]
[338467190,1726667442786,-151.0,0.00019178,2]
[338467191,1726667442796,-151.0,0.00019178,2]
[338467192,1726667442807,-151.0,0.00019178,2]
[338467193,1726667442816,-151.0,0.00019178,2]
[338467194,1726667442825,-151.0,0.00019178,2]
[338467195,1726667442834,-151.0,0.00019178,2]
[338467196,1726667442844,-151.0,0.00019178,2]
[338467197,1726667442853,-500.0,0.00019178,2]
[338467198,1726667442862,-294.853494,0.00019178,2]
[338467199,1726667442871,-294.853494,0.00019178,2]
[338467200,1726667442880,-294.853494,0.00019178,2]
[338467201,1726667442890,-294.853494,0.00019178,2]
[338467202,1726667442901,-294.853494,0.00019178,2]
[338467203,1726667442912,-500.0,0.00019178,2]
[338467204,1726667442921,-537.25,0.00019178,2]
[338467206,1726667442930,-294.853494,0.00019178,2]
[338467207,1726667442940,-500.0,0.00019178,2]
[338467208,1726667442950,-500.0,0.00019178,2]
[338467210,1726667442959,-252.52289658,0.00019178,2]
[338467211,1726667442969,-642.74,0.00019178,2]
[338467212,1726667442978,-500.0,0.00019178,2]
[338467213,1726667442988,-500.0,0.00019178,2]
[338467214,1726667442998,-500.0,0.00019178,2]
[338467216,1726667443010,-500.0,0.00019178,2]
[338467217,1726667443020,-500.0,0.00019178,2]
[338467219,1726667443030,-586.75,0.00019178,2]
[338467221,1726667443039,-662.97,0.00019178,2]
[338467222,1726667443048,-500.0,0.00019178,2]
[338467224,1726667443057,-500.0,0.00019178,2]
[338467226,1726667443067,-629.31,0.00019178,2]
[338467228,1726667443077,-500.0,0.00019178,2]
[338467230,1726667443086,-642.45,0.00019178,2]
[338467232,1726667443096,-500.0,0.00019178,2]
[338467234,1726667443105,-500.0,0.00019178,2]
[338467236,1726667443114,-751.56,0.00019178,2]
[338467238,1726667443124,-500.0,0.00019178,2]
[338467240,1726667443133,-500.0,0.00019178,2]
[338467242,1726667443142,-500.0,0.00019178,2]
[338467243,1726667443152,-1125.54,0.00019178,2]
[338467245,1726667443161,-500.0,0.00019178,2]
[338467247,1726667443170,-500.0,0.00019178,2]
[338467248,1726667443180,-1332.76,0.00019178,2]
[338467249,1726667443189,-1078.64,0.00019178,2]
[338467250,1726667443199,-654.91,0.00019178,2]
[338467251,1726667443209,-500.0,0.00019178,2]
[338467252,1726667443218,-1420.41,0.00019178,2]
[338467253,1726667443227,-1029.93,0.00019178,2]
[338467254,1726667443237,-555.56,0.00019178,2]
[338467255,1726667443247,-500.0,0.00019178,2]
[338467256,1726667443259,-500.0,0.00019178,2]
[338467257,1726667443268,-500.0,0.00019178,2]
[338467258,1726667443279,-277.20909129,0.00019178,2]
[338467259,1726667443288,-500.0,0.00019178,2]
[338467260,1726667443297,-500.0,0.00019178,2]
[338467261,1726667443306,-500.0,0.00019178,2]
[338467262,1726667443316,-151.0,0.00019178,2]
[338467263,1726667443325,-151.0,0.00019178,2]
[338467264,1726667443335,-153.739043,0.00019178,2]
[338467265,1726667443344,-500.0,0.00019178,2]
[338467266,1726667443354,-500.0,0.00019178,2]
[338467267,1726667443363,-500.0,0.00019178,2]
[338467268,1726667443372,-500.0,0.00019178,2]
[338467269,1726667443382,-253.953938,0.00019178,2]
[338467270,1726667443392,-253.953938,0.00019178,2]
[338467271,1726667443404,-253.953938,0.00019178,2]
[338467272,1726667443414,-253.953938,0.00019178,2]
[338467273,1726667443426,-253.953938,0.00019178,2]
[338467274,1726667443437,-500.0,0.00019178,2]
[338467275,1726667443448,-253.953938,0.00019178,2]
[338467276,1726667443459,-253.953938,0.00019178,2]
[338467277,1726667443470,-253.953938,0.00019178,2]
[338467278,1726667443480,-500.0,0.00019178,2]
[338467279,1726667443491,-1830.33,0.00019178,2]
[338467280,1726667443507,-655.28,0.00019178,2]
[338467281,1726667443521,-2096.31,0.00019178,2]
[338467282,1726667443533,-500.0,0.00019178,2]
[338467283,1726667443544,-1019.14,0.00019178,2]
[338467284,1726667443554,-500.0,0.00019178,2]
[338467285,1726667443565,-500.0,0.00019178,2]
[338467286,1726667443576,-250.0,0.00019178,2]
[338467287,1726667443587,-616.25950313,0.00019178,2]
[338467288,1726667443597,-1696.49,0.00019178,2]
[338467289,1726667443608,-500.0,0.00019178,2]
[338467290,1726667443619,-1980.32,0.00019178,2]
[338467291,1726667443631,-1927.47,0.00019178,2]
[338467292,1726667443643,-523.89,0.00019178,2]
[338467293,1726667443654,-500.0,0.00019178,2]
[338467294,1726667443666,-1723.89,0.00019178,2]
[338467295,1726667443676,-593.69,0.00019178,2]
[338467296,1726667443686,-500.0,0.00019178,2]
[338467297,1726667443695,-913.77,0.00019178,2]
[338467298,1726667443705,-500.0,0.00019178,2]
[338467299,1726667443717,-500.0,0.00019178,2]
[338467300,1726667443728,-2768.29,0.00019178,2]
[338467301,1726667443737,-500.0,0.00019178,2]
[338467302,1726667443746,-500.0,0.00019178,2]
[338467303,1726667443759,-500.0,0.00019178,2]
[338467304,1726667443770,-1625.64,0.00019178,2]
[338467305,1726667443779,-500.0,0.00019178,2]
[338467306,1726667443788,-500.0,0.00019178,2]
[338467307,1726667443797,-1227.51,0.00019178,2]
[338467308,1726667443808,-500.0,0.00019178,2]
[338467309,1726667443818,-500.0,0.00019178,2]
[338467310,1726667443827,-500.0,0.00019178,2]
[338467311,1726667443839,-500.0,0.00019178,2]
[338467312,1726667443849,-500.0,0.00019178,2]
[338467313,1726667443858,-587.04,0.00019178,2]
[338467314,1726667443867,-616.55,0.00019178,2]